[Event "Fagernes Chess Open 2024"]
[Site "Fagernes"]
[Date "2024.03.25"]
[Round "2"]
[White "Hausken, Andreas Skrede"]
[Black "Johansson, Henrik"]
[Result "1/2-1/2"]
[ECO "B01"]
[WhiteElo "1963"]
[BlackElo "1736"]
[Annotator "NA RC"]
[PlyCount "113"]
[EventDate "2024.03.25"]
[EventType "swiss"]
[EventCountry "NOR"]
[SourceTitle "playchess.com"]
[Source "ChessBase"]
[SourceQuality "1"]
[TimeControl "40/6000+30:2400+30"]

1. e4 {[%emt 0:09:09]} d5 {[%emt 0:00:54]} 2. exd5 {[%emt 0:04:43]} Nf6 {[%emt 0:00:40]} 3. d4 {[%emt 0:00:25]} Bg4 {[%emt 0:02:35]} 4. f3 {[%emt 0:02:22]} Bf5 {[%emt 0:01:08]} 5. c4 {[%emt 0:01:40]} e6 {[%emt 0:01:45]} 6. dxe6 {[%emt 0:03:29]} fxe6 {[%emt 0:06:37]} 7. Be3 {[%emt 0:00:39]} Bb4+ {[%emt 0:06:31]} 8. Nc3 {[%emt 0:01:37]} O-O {[%emt 0:00:42]} 9. Bd3 {[%emt 0:00:29]} Nc6 {[%emt 0:05:14]} 10. a3 {[%emt 0:08:48]} Nxd4 {[%emt 0:19:13]} 11. Bxf5 {[%emt 0:03:24]} Bxc3+ {[%emt 0:04:58]} 12. bxc3 {[%emt 0:00:05]} Nxf5 {[%emt 0:02:00]} 13. Bf2 {[%emt 0:01:05]} Qxd1+ {[%emt 0:04:07]} 14. Rxd1 {[%emt 0:00:05]} Nd6 {[%emt 0:00:49]} 15. c5 {[%emt 0:00:33]} Nb5 {[%emt 0:01:47]} 16. Rb1 {[%emt 0:00:23]} Nxc3 {[%emt 0:02:25]} 17. Rb3 {[%emt 0:00:06]} Ncd5 {[%emt 0:03:25]} 18. Ne2 {[%emt 0:00:28]} b6 {[%emt 0:02:26]} 19. O-O {[%emt 0:00:12]} Nd7 {[%emt 0:01:20]} 20. c6 {[%emt 0:02:02]} Ne5 {[%emt 0:01:35]} 21. Nd4 {[%emt 0:01:10]} Nc4 {[%emt 0:01:48]} 22. Rc1 {[%emt 0:01:04]} Na5 {[%emt 0:01:04]} 23. Rb2 {[%emt 0:03:32]} e5 {[%emt 0:00:52]} 24. Ne2 {[%emt 0:04:45]} Ne7 {[%emt 0:00:42]} 25. Rbc2 {[%emt 0:00:24]} Rf6 {[%emt 0:02:56]} 26. Be1 {[%emt 0:00:34]} Naxc6 {[%emt 0:01:09]} 27. Bh4 {[%emt 0:00:07]} Re6 {[%emt 0:00:59]} 28. Bxe7 {[%emt 0:00:04]} Nxe7 {[%emt 0:01:20]} 29. Rxc7 {[%emt 0:00:05]} Nd5 {[%emt 0:02:59]} 30. Rd7 {[%emt 0:00:28]} Nf4 {[%emt 0:02:05]} 31. Ng3 {[%emt 0:01:29]} h5 {[%emt 0:02:06]} 32. Rcc7 {[%emt 0:01:37]} Rg6 {[%emt 0:01:15]} 33. Nf5 {[%emt 0:01:46]} Rxg2+ {[%emt 0:03:00]} 34. Kf1 {[%emt 0:00:02]} Rg5 {[%emt 0:03:29]} 35. Nxg7 {[%emt 0:00:42]} Rf8 {[%emt 0:01:21]} 36. Ke1 {[%emt 0:03:06]} Rg1+ {[%emt 0:02:06]} 37. Kd2 {[%emt 0:01:18]} Rg2+ {[%emt 0:00:43]} 38. Kc3 {[%emt 0:01:10]} Nd5+ {[%emt 0:01:52]} 39. Rxd5 {[%emt 0:00:03]} Rxf3+ {[%emt 0:00:45]} 40. Rd3 {[%emt 0:00:47]} Rxd3+ {[%emt 0:00:30]} 41. Kxd3 {[%emt 0:40:06]} Rxg7 {[%emt 0:40:31]} 42. Rc8+ {[%emt 0:00:03]} Kf7 {[%emt 0:00:49]} 43. Rh8 {[%emt 0:00:08]} Kg6 {[%emt 0:01:04]} 44. Ke4 {[%emt 0:00:03]} Re7 {[%emt 0:01:42]} 45. Rg8+ {[%emt 0:00:26]} Kh6 {[%emt 0:00:57]} 46. h4 {[%emt 0:00:19]} Rc7 {[%emt 0:01:17]} 47. Ra8 {[%emt 0:00:33]} Rc4+ {[%emt 0:00:52]} 48. Kxe5 {[%emt 0:00:02]} Rxh4 {[%emt 0:01:24]} 49. Rxa7 {[%emt 0:00:03]} Rc4 {[%emt 0:00:52]} 50. Ra6 {[%emt 0:00:28]} Rc5+ {[%emt 0:00:34]} 51. Kf4 {[%emt 0:00:10]} Rb5 {[%emt 0:00:23]} 52. a4 {[%emt 0:00:06]} Rb4+ {[%emt 0:00:19]} 53. Kf5 {[%emt 0:00:04]} h4 {[%emt 0:00:18]} 54. a5 {[%emt 0:00:54]} h3 {[%emt 0:01:21]} 55. Rxb6+ {[%emt 0:00:28]} Rxb6 {[%emt 0:00:28]} 56. axb6 {[%emt 0:00:03]} h2 {[%emt 0:00:41]} 57. b7 {[%emt 0:00:02]} 1/2-1/2

[Event "Fagernes Chess Open 2024"]
[Site "Fagernes"]
[Date "2024.03.25"]
[Round "2"]
[White "Kittilsen, Sigurd"]
[Black "Vreugdenhil, Maarten"]
[Result "1-0"]
[ECO "B40"]
[WhiteElo "1910"]
[BlackElo "1721"]
[Annotator "NA RC"]
[PlyCount "73"]
[EventDate "2024.03.25"]
[EventType "swiss"]
[EventCountry "NOR"]
[SourceTitle "playchess.com"]
[Source "ChessBase"]
[SourceQuality "1"]
[TimeControl "40/6000+30:2400+30"]

1. e4 {[%emt 0:00:03]} c5 {[%emt 0:01:37]} 2. Nf3 {[%emt 0:00:14]} e6 {[%emt 0:00:20]} 3. d4 {[%emt 0:00:14]} cxd4 {[%emt 0:00:05]} 4. Nxd4 {[%emt 0:00:06]} Nf6 {[%emt 0:00:08]} 5. Nc3 {[%emt 0:00:25]} a6 {[%emt 0:01:17]} 6. e5 {[%emt 0:03:22]} Ng8 {[%emt 0:01:21]} 7. Be3 {[%emt 0:09:12]} Qc7 {[%emt 0:05:38]} 8. f4 {[%emt 0:05:25]} d6 {[%emt 0:05:24]} 9. exd6 {[%emt 0:07:49]} Bxd6 {[%emt 0:00:16]} 10. Qd2 {[%emt 0:03:45]} Bd7 {[%emt 0:02:46]} 11. Ne4 {[%emt 0:04:58]} Be7 {[%emt 0:04:28]} 12. Bd3 {[%emt 0:06:57]} Nf6 {[%emt 0:00:38]} 13. O-O-O {[%emt 0:05:22]} Nc6 {[%emt 0:04:22]} 14. Kb1 {[%emt 0:10:19]} Nxe4 {[%emt 0:17:35]} 15. Bxe4 {[%emt 0:00:12]} Bf6 {[%emt 0:00:07]} 16. g4 {[%emt 0:05:03]} O-O-O {[%emt 0:07:59]} 17. Qf2 {[%emt 0:05:36]} Nxd4 {[%emt 0:07:49]} 18. Bxd4 {[%emt 0:01:07]} Bxd4 {[%emt 0:00:48]} 19. Rxd4 {[%emt 0:05:36]} Bc6 {[%emt 0:04:05]} 20. Rc4 {[%emt 0:04:19]} Qd6 {[%emt 0:01:09]} 21. Qf3 {[%emt 0:00:24]} Kb8 {[%emt 0:04:41]} 22. Bxc6 {[%emt 0:00:37]} bxc6 {[%emt 0:00:45]} 23. Rxc6 {[%emt 0:00:10]} Qd5 {[%emt 0:00:13]} 24. Qxd5 {[%emt 0:02:32]} Rxd5 {[%emt 0:00:08]} 25. Rxa6 {[%emt 0:02:01]} Rd4 {[%emt 0:03:44]} 26. Rf1 {[%emt 0:04:42]} Rhd8 {[%emt 0:02:19]} 27. Kc1 {[%emt 0:01:19]} Rd2 {[%emt 0:01:30]} 28. h3 {[%emt 0:00:33]} Rh2 {[%emt 0:02:23]} 29. Ra3 {[%emt 0:00:06]} Rdd2 {[%emt 0:02:03]} 30. Rb3+ {[%emt 0:00:08]} Kc7 {[%emt 0:00:19]} 31. Rc3+ {[%emt 0:00:05]} Kb6 {[%emt 0:01:08]} 32. a4 {[%emt 0:11:42]} f6 {[%emt 0:04:08]} 33. Re1 {[%emt 0:01:17]} Rd6 {[%emt 0:01:28]} 34. Rce3 {[%emt 0:01:05]} Rdd2 {[%emt 0:01:17]} 35. Rc3 {[%emt 0:02:28]} Rd4 {[%emt 0:04:54]} 36. Rxe6+ {[%emt 0:02:26]} Kb7 {[%emt 0:00:49]} 37. b3 {[%emt 0:01:09]} 1-0

[Event "Fagernes Chess Open 2024"]
[Site "Fagernes"]
[Date "2024.03.25"]
[Round "2"]
[White "Rolstad, Morten"]
[Black "Sushrutha, Reddy"]
[Result "1/2-1/2"]
[ECO "B52"]
[WhiteElo "1879"]
[BlackElo "1707"]
[Annotator "NA RC"]
[PlyCount "98"]
[EventDate "2024.03.25"]
[EventType "swiss"]
[EventCountry "NOR"]
[SourceTitle "playchess.com"]
[Source "ChessBase"]
[SourceQuality "1"]
[TimeControl "40/6000+30:2400+30"]

1. e4 {[%emt 0:00:15]} c5 {[%emt 0:00:52]} 2. Nf3 {[%emt 0:00:23]} d6 {[%emt 0:00:14]} 3. Bb5+ {[%emt 0:00:19]} Bd7 {[%emt 0:00:13]} 4. Bxd7+ {[%emt 0:00:09]} Qxd7 {[%emt 0:00:10]} 5. O-O {[%emt 0:00:12]} Nc6 {[%emt 0:00:08]} 6. Qe2 {[%emt 0:00:28]} Nf6 {[%emt 0:01:59]} 7. Rd1 {[%emt 0:00:27]} g6 {[%emt 0:01:55]} 8. c3 {[%emt 0:00:44]} Bg7 {[%emt 0:00:21]} 9. d4 {[%emt 0:00:38]} cxd4 {[%emt 0:00:15]} 10. cxd4 {[%emt 0:00:11]} d5 {[%emt 0:01:46]} 11. e5 {[%emt 0:09:44]} Ne4 {[%emt 0:00:22]} 12. Nbd2 {[%emt 0:00:21]} Nxd2 {[%emt 0:00:25]} 13. Bxd2 {[%emt 0:00:27]} O-O {[%emt 0:00:08]} 14. Rac1 {[%emt 0:03:58]} Rac8 {[%emt 0:02:09]} 15. Rc3 {[%emt 0:04:07]} Rc7 {[%emt 0:03:57]} 16. Rdc1 {[%emt 0:01:52]} Rfc8 {[%emt 0:00:22]} 17. Qb5 {[%emt 0:12:25]} e6 {[%emt 0:01:58]} 18. h3 {[%emt 0:06:49]} h6 {[%emt 0:09:31]} 19. a4 {[%emt 0:05:49]} Kh7 {[%emt 0:01:10]} 20. g3 {[%emt 0:07:39]} Qe7 {[%emt 0:00:44]} 21. Kg2 {[%emt 0:05:27]} Bf8 {[%emt 0:03:37]} 22. h4 {[%emt 0:06:48]} Nd8 {[%emt 0:01:22]} 23. Rxc7 {[%emt 0:09:19]} Rxc7 {[%emt 0:01:25]} 24. Rxc7 {[%emt 0:00:15]} Qxc7 {[%emt 0:00:10]} 25. Qd3 {[%emt 0:08:47]} Kg8 {[%emt 0:03:37]} 26. Nh2 {[%emt 0:01:32]} Qc4 {[%emt 0:01:24]} 27. Qxc4 {[%emt 0:02:49]} dxc4 {[%emt 0:00:02]} 28. Ng4 {[%emt 0:00:13]} Nc6 {[%emt 0:00:55]} 29. Bc3 {[%emt 0:03:05]} a6 {[%emt 0:02:52]} 30. a5 {[%emt 0:01:07]} Bb4 {[%emt 0:02:00]} 31. Bxb4 {[%emt 0:01:35]} Nxb4 {[%emt 0:02:19]} 32. Ne3 {[%emt 0:00:14]} Nc6 {[%emt 0:01:01]} 33. Nxc4 {[%emt 0:00:25]} Nxd4 {[%emt 0:00:14]} 34. Nd6 {[%emt 0:00:28]} Nc6 {[%emt 0:00:25]} 35. Nxb7 {[%emt 0:08:23]} Nxe5 {[%emt 0:00:13]} 36. Nc5 {[%emt 0:00:10]} Nc6 {[%emt 0:00:17]} 37. Nxa6 {[%emt 0:00:40]} Nxa5 {[%emt 0:00:04]} 38. b4 {[%emt 0:00:28]} Nb7 {[%emt 0:01:07]} 39. Kf3 {[%emt 0:01:01]} Kf8 {[%emt 0:00:19]} 40. Ke4 {[%emt 0:00:48]} Ke7 {[%emt 0:00:15]} 41. Kd4 {[%emt 0:45:13]} Kd6 {[%emt 0:42:18]} 42. b5 {[%emt 0:00:00]} e5+ {[%emt 0:00:00]} 43. Kc4 {[%emt 0:01:17]} f5 {[%emt 0:00:00]} 44. Nb8 {[%emt 0:00:00]} g5 {[%emt 0:00:00]} 45. hxg5 {[%emt 0:00:00]} hxg5 {[%emt 0:00:00]} 46. Nc6 {[%emt 0:00:00]} g4 {[%emt 0:00:00]} 47. Kd3 {[%emt 0:00:00]} Nc5+ {[%emt 0:00:00]} 48. Ke3 {[%emt 0:00:00]} Ne6 {[%emt 0:00:00]} 49. Kd3 {[%emt 0:00:00]} Nc5+ {[%emt 0:00:00]} 1/2-1/2

[Event "Fagernes Chess Open 2024"]
[Site "Fagernes"]
[Date "2024.03.25"]
[Round "2"]
[White "Strand, Amund Pihl"]
[Black "Lie, Bjorn"]
[Result "1-0"]
[ECO "D80"]
[WhiteElo "1860"]
[BlackElo "1690"]
[Annotator "NA RC"]
[PlyCount "35"]
[EventDate "2024.03.25"]
[EventType "swiss"]
[EventCountry "NOR"]
[SourceTitle "playchess.com"]
[Source "ChessBase"]
[SourceQuality "1"]
[TimeControl "40/6000+30:2400+30"]

1. d4 {[%emt 0:12:44]} Nf6 {[%emt 0:00:15]} 2. c4 {[%emt 0:00:07]} g6 {[%emt 0:00:05]} 3. Nc3 {[%emt 0:00:06]} d5 {[%emt 0:00:06]} 4. h4 {[%emt 0:00:07]} Bg7 {[%emt 0:02:22]} 5. h5 {[%emt 0:00:46]} gxh5 {[%emt 0:10:58]} 6. cxd5 {[%emt 0:25:21]} Nxd5 {[%emt 0:00:08]} 7. e4 {[%emt 0:00:05]} Nxc3 {[%emt 0:00:09]} 8. bxc3 {[%emt 0:00:06]} c5 {[%emt 0:02:27]} 9. Rxh5 {[%emt 0:10:08]} cxd4 {[%emt 0:02:42]} 10. Rd5 {[%emt 0:01:18]} Qc7 {[%emt 0:04:10]} 11. cxd4 {[%emt 0:02:58]} Nd7 {[%emt 0:05:37]} 12. Be3 {[%emt 0:08:27]} a6 {[%emt 0:04:22]} 13. Rc1 {[%emt 0:01:45]} Qb8 {[%emt 0:01:51]} 14. Qg4 {[%emt 0:04:58]} Nf6 {[%emt 0:03:17]} 15. Qxg7 {[%emt 0:03:43]} Rg8 {[%emt 0:00:05]} 16. Rd8+ {[%emt 0:00:39]} Kxd8 {[%emt 0:00:36]} 17. Qxf7 {[%emt 0:00:23]} Rg6 {[%emt 0:06:35]} 18. e5 {[%emt 0:09:53]} 1-0

[Event "Fagernes Chess Open 2024"]
[Site "Fagernes"]
[Date "2024.03.25"]
[Round "2"]
[White "Lahlum, Ida"]
[Black "Andersen, Dag"]
[Result "1-0"]
[ECO "B54"]
[WhiteElo "1755"]
[BlackElo "1899"]
[Annotator "NA RC"]
[PlyCount "61"]
[EventDate "2024.03.25"]
[EventType "swiss"]
[EventCountry "NOR"]
[SourceTitle "playchess.com"]
[Source "ChessBase"]
[SourceQuality "1"]
[TimeControl "40/6000+30:2400+30"]

1. d4 {[%emt 0:00:03]} Nf6 {[%emt 0:00:21]} 2. c4 {[%emt 0:00:12]} c5 {[%emt 0:02:10]} 3. Nf3 {[%emt 0:03:15]} cxd4 {[%emt 0:03:32]} 4. Nxd4 {[%emt 0:00:44]} Nc6 {[%emt 0:00:46]} 5. Nxc6 {[%emt 0:03:28]} bxc6 {[%emt 0:00:19]} 6. Nc3 {[%emt 0:02:27]} e6 {[%emt 0:05:20]} 7. e4 {[%emt 0:02:59]} d6 {[%emt 0:04:47]} 8. e5 {[%emt 0:06:33]} dxe5 {[%emt 0:02:12]} 9. Qxd8+ {[%emt 0:03:01]} Kxd8 {[%emt 0:00:15]} 10. a3 {[%emt 0:04:48]} a5 {[%emt 0:04:28]} 11. Be3 {[%emt 0:06:04]} Kc7 {[%emt 0:02:34]} 12. O-O-O {[%emt 0:03:41]} Be7 {[%emt 0:01:57]} 13. Na4 {[%emt 0:03:17]} Nd7 {[%emt 0:02:41]} 14. Be2 {[%emt 0:04:11]} f5 {[%emt 0:03:00]} 15. f3 {[%emt 0:08:14]} Rb8 {[%emt 0:06:31]} 16. c5 {[%emt 0:04:20]} Nf6 {[%emt 0:03:34]} 17. Bd2 {[%emt 0:06:21]} Ra8 {[%emt 0:03:06]} 18. Nb6 {[%emt 0:11:46]} Ra7 {[%emt 0:00:51]} 19. Nc4 {[%emt 0:02:43]} Bxc5 {[%emt 0:03:08]} 20. Bxa5+ {[%emt 0:01:29]} Kb7 {[%emt 0:02:14]} 21. Bc3 {[%emt 0:02:35]} Bd4 {[%emt 0:06:20]} 22. Bxd4 {[%emt 0:02:01]} exd4 {[%emt 0:00:08]} 23. Rxd4 {[%emt 0:00:14]} Nd5 {[%emt 0:01:19]} 24. Ne5 {[%emt 0:01:49]} Kc7 {[%emt 0:01:15]} 25. Rc4 {[%emt 0:04:38]} Bb7 {[%emt 0:01:00]} 26. Kb1 {[%emt 0:01:21]} Rd8 {[%emt 0:12:03]} 27. Rhc1 {[%emt 0:02:24]} Ne7 {[%emt 0:01:09]} 28. R4c2 {[%emt 0:02:38]} Ra5 {[%emt 0:05:52]} 29. f4 {[%emt 0:01:57]} Rd4 {[%emt 0:01:12]} 30. g3 {[%emt 0:02:33]} Kb6 {[%emt 0:05:32]} 31. Nc4+ {[%emt 0:02:00]} 1-0

[Event "Fagernes Chess Open 2024"]
[Site "Fagernes"]
[Date "2024.03.25"]
[Round "2"]
[White "Vollheim, Daniel O"]
[Black "Spanton, Tim R"]
[Result "0-1"]
[ECO "D12"]
[WhiteElo "1713"]
[BlackElo "1876"]
[Annotator "NA RC"]
[PlyCount "132"]
[EventDate "2024.03.25"]
[EventType "swiss"]
[EventCountry "NOR"]
[SourceTitle "playchess.com"]
[Source "ChessBase"]
[SourceQuality "1"]
[TimeControl "40/6000+30:2400+30"]

1. c4 {[%emt 0:00:26]} e6 {[%emt 0:00:30]} 2. Nc3 {[%emt 0:00:00]} d5 {[%emt 0:00:06]} 3. cxd5 {[%emt 0:00:16]} exd5 {[%emt 0:00:06]} 4. d4 {[%emt 0:00:30]} c6 {[%emt 0:00:18]} 5. Nf3 {[%emt 0:00:17]} Bf5 {[%emt 0:00:30]} 6. e3 {[%emt 0:00:36]} Bd6 {[%emt 0:00:48]} 7. Bd3 {[%emt 0:00:15]} Bxd3 {[%emt 0:01:09]} 8. Qxd3 {[%emt 0:00:09]} Nf6 {[%emt 0:00:22]} 9. Bd2 {[%emt 0:01:43]} O-O {[%emt 0:00:20]} 10. O-O {[%emt 0:00:08]} Nbd7 {[%emt 0:00:17]} 11. Rfe1 {[%emt 0:02:07]} Re8 {[%emt 0:00:33]} 12. Rad1 {[%emt 0:02:34]} Ne4 {[%emt 0:00:41]} 13. h3 {[%emt 0:03:09]} Re6 {[%emt 0:03:25]} 14. Qc2 {[%emt 0:09:35]} Ndf6 {[%emt 0:03:19]} 15. Nxe4 {[%emt 0:01:46]} Nxe4 {[%emt 0:00:25]} 16. Bc3 {[%emt 0:00:52]} Rf6 {[%emt 0:02:20]} 17. Qe2 {[%emt 0:04:19]} Qd7 {[%emt 0:03:59]} 18. Rf1 {[%emt 0:06:44]} Re8 {[%emt 0:02:47]} 19. Nd2 {[%emt 0:01:20]} Qf5 {[%emt 0:07:06]} 20. Nxe4 {[%emt 0:11:03]} Rxe4 {[%emt 0:06:25]} 21. f4 {[%emt 0:01:38]} Bxf4 {[%emt 0:02:01]} 22. Rf3 {[%emt 0:06:31]} Qe6 {[%emt 0:00:25]} 23. Re1 {[%emt 0:02:39]} Bc7 {[%emt 0:01:45]} 24. Rxf6 {[%emt 0:01:15]} Qxf6 {[%emt 0:00:25]} 25. Rf1 {[%emt 0:01:12]} Qg5 {[%emt 0:02:35]} 26. Bd2 {[%emt 0:01:50]} Qe7 {[%emt 0:07:00]} 27. Qf3 {[%emt 0:01:07]} h6 {[%emt 0:01:12]} 28. a3 {[%emt 0:00:36]} Re6 {[%emt 0:06:58]} 29. Qg4 {[%emt 0:02:18]} Rg6 {[%emt 0:05:59]} 30. Qc8+ {[%emt 0:02:36]} Kh7 {[%emt 0:00:23]} 31. Qf5 {[%emt 0:00:16]} Kg8 {[%emt 0:05:24]} 32. Qc8+ {[%emt 0:00:32]} Bd8 {[%emt 0:01:39]} 33. Kh1 {[%emt 0:02:06]} Qc7 {[%emt 0:03:34]} 34. Qxc7 {[%emt 0:01:42]} Bxc7 {[%emt 0:00:06]} 35. Kg1 {[%emt 0:04:22]} Re6 {[%emt 0:00:38]} 36. Rf3 {[%emt 0:01:28]} Bd8 {[%emt 0:00:51]} 37. Kf2 {[%emt 0:01:33]} Rf6 {[%emt 0:00:33]} 38. Ke2 {[%emt 0:01:17]} Rxf3 {[%emt 0:00:07]} 39. Kxf3 {[%emt 0:00:25]} Bg5 {[%emt 0:03:56]} 40. Kg4 {[%emt 0:01:00]} g6 {[%emt 0:01:32]} 41. h4 {[%emt 0:01:19]} f5+ {[%emt 0:40:24]} 42. Kh3 {[%emt 0:42:06]} Bf6 {[%emt 0:00:19]} 43. b4 {[%emt 0:00:51]} Kf7 {[%emt 0:00:35]} 44. g4 {[%emt 0:01:10]} Ke6 {[%emt 0:00:49]} 45. Be1 {[%emt 0:02:18]} Be7 {[%emt 0:01:12]} 46. Bg3 {[%emt 0:01:28]} a5 {[%emt 0:00:57]} 47. Be1 {[%emt 0:00:48]} Bd6 {[%emt 0:02:04]} 48. Bd2 {[%emt 0:00:58]} b6 {[%emt 0:01:21]} 49. bxa5 {[%emt 0:01:32]} bxa5 {[%emt 0:00:16]} 50. Bxa5 {[%emt 0:00:29]} Bxa3 {[%emt 0:00:18]} 51. Bc7 {[%emt 0:01:01]} Be7 {[%emt 0:03:17]} 52. Bb6 {[%emt 0:00:44]} g5 {[%emt 0:03:24]} 53. h5 {[%emt 0:01:26]} Bb4 {[%emt 0:00:22]} 54. Kg3 {[%emt 0:01:11]} Bd2 {[%emt 0:00:18]} 55. Kf3 {[%emt 0:00:37]} fxg4+ {[%emt 0:00:13]} 56. Kxg4 {[%emt 0:00:11]} Bxe3 {[%emt 0:00:18]} 57. Bc5 {[%emt 0:00:17]} Bg1 {[%emt 0:02:35]} 58. Bb6 {[%emt 0:00:26]} Bh2 {[%emt 0:00:24]} 59. Bc5 {[%emt 0:00:49]} Bd6 {[%emt 0:01:12]} 60. Bb6 {[%emt 0:00:24]} Kd7 {[%emt 0:00:27]} 61. Kf5 {[%emt 0:01:20]} Kc8 {[%emt 0:02:59]} 62. Kg6 {[%emt 0:00:42]} g4 {[%emt 0:00:42]} 63. Ba5 {[%emt 0:00:13]} g3 {[%emt 0:00:22]} 64. Be1 {[%emt 0:00:08]} g2 {[%emt 0:00:53]} 65. Bf2 {[%emt 0:00:12]} Bh2 {[%emt 0:00:16]} 66. Kxh6 {[%emt 0:00:45]} g1=Q {[%emt 0:00:12]} 0-1

[Event "Fagernes Chess Open 2024"]
[Site "Fagernes"]
[Date "2024.03.25"]
[Round "2"]
[White "Damiano, Sophie"]
[Black "Ali, Karim"]
[Result "1-0"]
[ECO "D02"]
[WhiteElo "1691"]
[BlackElo "1855"]
[Annotator "NA RC"]
[PlyCount "101"]
[EventDate "2024.03.25"]
[EventType "swiss"]
[EventCountry "NOR"]
[SourceTitle "playchess.com"]
[Source "ChessBase"]
[SourceQuality "1"]
[TimeControl "40/6000+30:2400+30"]

1. d4 {[%emt 0:00:02]} Nf6 {[%emt 0:03:08]} 2. Nf3 {[%emt 0:00:20]} e6 {[%emt 0:00:22]} 3. g3 {[%emt 0:00:32]} c5 {[%emt 0:01:13]} 4. Bg2 {[%emt 0:01:45]} cxd4 {[%emt 0:00:53]} 5. Nxd4 {[%emt 0:00:47]} d5 {[%emt 0:00:03]} 6. O-O {[%emt 0:03:08]} e5 {[%emt 0:00:11]} 7. Nb3 {[%emt 0:00:55]} Nc6 {[%emt 0:01:59]} 8. Bg5 {[%emt 0:01:04]} d4 {[%emt 0:04:50]} 9. N1d2 {[%emt 0:05:18]} Be7 {[%emt 0:01:27]} 10. Bxf6 {[%emt 0:01:41]} Bxf6 {[%emt 0:00:44]} 11. Ne4 {[%emt 0:02:28]} Be7 {[%emt 0:00:14]} 12. h4 {[%emt 0:03:42]} O-O {[%emt 0:00:45]} 13. Qd2 {[%emt 0:03:32]} f5 {[%emt 0:12:16]} 14. Ng5 {[%emt 0:05:29]} h6 {[%emt 0:05:01]} 15. Nh3 {[%emt 0:01:23]} Be6 {[%emt 0:02:23]} 16. Rad1 {[%emt 0:04:27]} Qb6 {[%emt 0:04:43]} 17. Kh1 {[%emt 0:04:34]} Rad8 {[%emt 0:00:15]} 18. Ng1 {[%emt 0:03:00]} Bb4 {[%emt 0:04:08]} 19. Qc1 {[%emt 0:00:22]} a5 {[%emt 0:09:25]} 20. c3 {[%emt 0:03:57]} dxc3 {[%emt 0:01:54]} 21. Rxd8 {[%emt 0:00:32]} Rxd8 {[%emt 0:00:46]} 22. bxc3 {[%emt 0:00:43]} Be7 {[%emt 0:00:35]} 23. Qc2 {[%emt 0:05:07]} a4 {[%emt 0:06:58]} 24. Nd2 {[%emt 0:01:05]} e4 {[%emt 0:02:59]} 25. e3 {[%emt 0:05:02]} Ne5 {[%emt 0:01:21]} 26. Ne2 {[%emt 0:01:23]} Qd6 {[%emt 0:14:09]} 27. Nd4 {[%emt 0:01:48]} Bd7 {[%emt 0:04:04]} 28. Rb1 {[%emt 0:05:24]} b5 {[%emt 0:04:10]} 29. Bf1 {[%emt 0:02:37]} Ng4 {[%emt 0:01:19]} 30. Bxb5 {[%emt 0:09:06]} Bxh4 {[%emt 0:03:19]} 31. Nc4 {[%emt 0:01:02]} Qc7 {[%emt 0:05:03]} 32. Bxd7 {[%emt 0:10:27]} Qxd7 {[%emt 0:00:23]} 33. Nb6 {[%emt 0:03:14]} Qf7 {[%emt 0:02:12]} 34. gxh4 {[%emt 0:04:05]} Qh5 {[%emt 0:00:05]} 35. Kg1 {[%emt 0:00:45]} Qxh4 {[%emt 0:00:15]} 36. Kf1 {[%emt 0:00:25]} Nxe3+ {[%emt 0:07:21]} 37. fxe3 {[%emt 0:02:16]} Qh1+ {[%emt 0:00:11]} 38. Ke2 {[%emt 0:00:34]} Qg2+ {[%emt 0:00:12]} 39. Kd1 {[%emt 0:02:28]} Qf1+ {[%emt 0:01:13]} 40. Kd2 {[%emt 0:01:24]} Qf2+ {[%emt 0:00:06]} 41. Kc1 {[%emt 0:40:44]} Qxe3+ {[%emt 0:41:18]} 42. Qd2 {[%emt 0:01:46]} Qg3 {[%emt 0:06:13]} 43. Kc2 {[%emt 0:06:29]} f4 {[%emt 0:00:00]} 44. Rf1 {[%emt 0:00:00]} e3 {[%emt 0:00:00]} 45. Qd3 {[%emt 0:00:00]} e2 {[%emt 0:00:00]} 46. Qxe2 {[%emt 0:00:00]} Qg6+ {[%emt 0:00:00]} 47. Kc1 {[%emt 0:00:00]} Re8 {[%emt 0:00:00]} 48. Qb5 {[%emt 0:00:00]} Rb8 {[%emt 0:00:00]} 49. Qc4+ {[%emt 0:00:00]} Kh8 {[%emt 0:00:00]} 50. Ne6 {[%emt 0:00:00]} Qg3 {[%emt 0:00:00]} 51. Qd4 {[%emt 0:00:00]} 1-0

[Event "Fagernes Chess Open 2024"]
[Site "Fagernes"]
[Date "2024.03.25"]
[Round "2"]
[White "Brattgjerd, August Minh"]
[Black "Agustsson, Hafsteinn"]
[Result "1/2-1/2"]
[ECO "D02"]
[WhiteElo "1689"]
[BlackElo "1825"]
[Annotator "NA RC"]
[PlyCount "55"]
[EventDate "2024.03.25"]
[EventType "swiss"]
[EventCountry "NOR"]
[SourceTitle "playchess.com"]
[Source "ChessBase"]
[SourceQuality "1"]
[TimeControl "40/6000+30:2400+30"]

1. d4 {[%emt 0:01:13]} d5 {[%emt 0:00:35]} 2. Bf4 {[%emt 0:00:23]} Nf6 {[%emt 0:00:38]} 3. e3 {[%emt 0:00:24]} e6 {[%emt 0:01:20]} 4. Bd3 {[%emt 0:00:48]} Nbd7 {[%emt 0:01:11]} 5. Nf3 {[%emt 0:01:04]} b6 {[%emt 0:01:40]} 6. Ne5 {[%emt 0:00:46]} Nxe5 {[%emt 0:04:40]} 7. Bxe5 {[%emt 0:00:14]} Bd6 {[%emt 0:02:28]} 8. Bg3 {[%emt 0:00:38]} Bb7 {[%emt 0:01:20]} 9. Nd2 {[%emt 0:00:46]} O-O {[%emt 0:00:43]} 10. O-O {[%emt 0:04:09]} Rc8 {[%emt 0:04:36]} 11. Re1 {[%emt 0:00:45]} c5 {[%emt 0:14:48]} 12. c3 {[%emt 0:00:31]} Qc7 {[%emt 0:04:08]} 13. Rc1 {[%emt 0:16:52]} e5 {[%emt 0:06:46]} 14. dxe5 {[%emt 0:01:01]} Bxe5 {[%emt 0:01:11]} 15. Bxe5 {[%emt 0:00:02]} Qxe5 {[%emt 0:00:14]} 16. Nf3 {[%emt 0:00:08]} Qd6 {[%emt 0:08:42]} 17. c4 {[%emt 0:00:57]} Rcd8 {[%emt 0:05:06]} 18. Qe2 {[%emt 0:20:42]} Rfe8 {[%emt 0:13:26]} 19. cxd5 {[%emt 0:01:10]} Bxd5 {[%emt 0:04:14]} 20. Rcd1 {[%emt 0:00:42]} Qc7 {[%emt 0:01:45]} 21. b3 {[%emt 0:00:58]} Ne4 {[%emt 0:09:11]} 22. Qc2 {[%emt 0:04:16]} Nf6 {[%emt 0:12:05]} 23. Qe2 {[%emt 0:05:14]} h6 {[%emt 0:02:39]} 24. h3 {[%emt 0:04:00]} Bc6 {[%emt 0:01:51]} 25. Bb5 {[%emt 0:01:42]} Bxb5 {[%emt 0:02:21]} 26. Qxb5 {[%emt 0:00:18]} Ne4 {[%emt 0:00:25]} 27. Qc4 {[%emt 0:01:27]} Qe7 {[%emt 0:00:38]} 28. Qc2 {[%emt 0:01:12]} 1/2-1/2